Cogmind - Beta 15 @@@ ROGUE MODE // 2025.09.28 @ 21:22:23 Player: leek.801 Result: Destroyed by G7-H61(R) with Subdweller Beam Cannon Performance ------------- Evolutions (0) 0 Regions Visited (2) 400 Robots Destroyed (22) 110 Value Destroyed (477) 477 Prototype IDs (0) 0 Alien Tech Used (0) 0 Bonus (0) 0 TOTAL SCORE: 987 Bonus ------- None Cogmind --------- Core Integrity 0/250 Matter 300/300 Energy 99/100 System Corruption 0% Temperature Cool (9) Movement Core (200) Ox3 Location -10/Subcaves Parts ------- > --- POWER (1) -------- (None) > --- PROPULSION (2) --- (None) > --- UTILITY (2) ------ Medium Storage Unit Sensor Array > --- WEAPON (2) ------- (None) > --- INVENTORY (10) --- Aluminum Leg Aluminum Leg Large Storage Unit Visual Processing Unit Grenade Launcher Scrap Shield Fragment (43) Scrap Shield Fragment (35) Peak State ------------ > --- POWER ------------ Ion Engine > --- PROPULSION ------- Light Treads Light Treads > --- UTILITY ---------- Medium Storage Unit Sensor Array > --- WEAPON ----------- Beam Cannon Light Cannon > --- INVENTORY -------- Aluminum Leg Aluminum Leg Large Storage Unit Visual Processing Unit Grenade Launcher Scrap Shield Fragment Scrap Shield Fragment [Rating: 8] Favorites ----------- Power Ion Engine Engine Ion Engine Propulsion Light Treads Treads Light Treads Wheel Wheel Utility Medium Storage Unit Device Sensor Array Storage Medium Storage Unit Weapon Light Cannon Energy Gun EM Pulse Gun Energy Cannon Beam Cannon Ballistic Gun Assault Rifle Ballistic Cannon Light Cannon Build | -11 -10 -10 ------- Run | Yrd Mat Sub Slots Evolved . | . . . Power . | . . . Propulsion . | . . . Utility . | . . . Weapon . | . . . Parts Attached 17 | 6 9 2 Power 2 | 1 . 1 Engine 2 | 1 . 1 Core . | . . . Reactor . | . . . Propulsion 5 | 2 2 1 Treads 2 | . 2 . Leg . | . . . Wheel 3 | 2 . 1 Hover . | . . . Flight . | . . . Utility 3 | 1 2 . Device 1 | . 1 . Storage 2 | 1 1 . Processor . | . . . Hackware . | . . . Protection . | . . . Artifact . | . . . Weapon 7 | 2 5 . Energy Gun 1 | . 1 . Energy Cannon 1 | . 1 . Ballistic Gun 2 | 2 . . Ballistic Cannon 3 | . 3 . Launcher . | . . . Special Weapon . | . . . Impact Weapon . | . . . Slashing Weapon . | . . . Piercing Weapon . | . . . Special Melee Weapon . | . . . Unidentified Prototypes . | . . . Parts Lost 10 | . 6 4 Power 2 | . 1 1 Propulsion 3 | . 2 1 Utility . | . . . Weapon 5 | . 3 2 Highest Loss Streak 4 | . 2 4 To Critical Strikes . | . . . Average Backups 6 | 2 7 5 Power . | . 1 . Propulsion 2 | 1 2 2 Utility 1 | . 1 2 Weapon 1 | . 2 1 Tool/Special . | . . . Unused Backups 6 | . 1 5 Power . | . . . Propulsion 2 | . . 2 Utility 2 | . . 2 Weapon 2 | . 1 1 Tool/Special . | . . . Average Slot Usage (%) 90 | . 89 94 Engine 12 | . 12 12 Treads 16 | . 14 22 Wheel 10 | . 12 2 Device 10 | . 9 14 Storage 14 | . 14 14 Energy Gun 2 | . 3 . Energy Cannon 4 | . . 13 Ballistic Gun 4 | . 6 . Ballistic Cannon 14 | . 15 12 Peak Build Rating 8 | 6 7 8 Average Rating 6 | 4 6 7 On Entrance 4 | . 6 6 Naked Turns . | . . . Heaviest Build 22 | 13 22 22 Greatest Support 40 | 26 40 40 Greatest Overweight (x) 7 | 4 7 3 Average Overweight (x) . | . . . Largest Inventory Capacity 10 | 8 10 10 Average Capacity 9 | 7 9 10 Most Carried 9 | 6 9 7 Average Carried 6 | 2 7 6 Final Capacity 10 | 8 10 10 Final Carried 7 | 6 6 7 Class Distribution -------------------- 100% | Mutant Dominant Class ---------------- Mutant | -10/Materials Mutant | -10/Subcaves Resources | -11 -10 -10 ----------- Run | Yrd Mat Sub Matter Collected 701 | 260 373 68 Remotely . | . . . Salvage Created 572 | . 504 68 Parts 35 | . 25 10 Haulers Intercepted . | . . . Recyclers Shooed 3 | . 3 . Parts Field Recycled . | . . . Retrieved Matter . | . . . Parts Self-Destructed 3 | . . 3 Prevented . | . . . Kills | -11 -10 -10 ------- Run | Yrd Mat Sub Combat Hostiles Destroyed 15 | . 13 2 Guns 6 | . 6 . Cannons 9 | . 7 2 Classes Destroyed 8 | . 7 1 Worker 1 | . 1 . Builder 1 | . 1 . Recycler 1 | . 1 . Mechanic 1 | . 1 . Watcher 3 | . 3 . Swarmer 6 | . 6 . Grunt 7 | . 7 . Subdweller 2 | . . 2 Best Kill Streak 5 | . 5 2 Combat Bots Only 5 | . 5 2 Max Kills in Single Turn 2 | . 2 1 Gunslinging 1 | . 1 . Exploded . | . . . Melee . | . . . Uniques/NPCs Destroyed . | . . . Combat | -11 -10 -10 -------- Run | Yrd Mat Sub Hostile Shots Fired 138 | . 101 37 Missed 39 | . 28 11 Hits 99 | . 73 26 Projectile 99 | . 73 26 Damage Taken 1338 | . 789 549 Core 257 | . 126 131 Absorbed by Shields . | . . . Core Remaining (%) 100 | 100 . . Volleys Fired 69 | . 58 11 Largest 2 | . 2 2 Hottest 90 | . 70 90 Shots Fired 126 | . 107 19 Gun 41 | . 41 . Cannon 85 | . 66 19 Launcher . | . . . Special . | . . . Kinetic 104 | . 96 8 Thermal 11 | . . 11 Explosive . | . . . Electromagnetic 11 | . 11 . Robot Hit Streak 8 | . 8 7 Robot Miss Streak 6 | . 6 2 Penetration Max . | . . . Secondary Targets 1 | . 1 . Max Gunslinging Chain 1 | . 1 . Shots Hit Robots 72 | . 60 12 Core Hits 29 | . 25 4 Critical Kills . | . . . Critical Parts Destroyed . | . . . Critical Strikes 3 | . 3 . Blast 2 | . 2 . Corrupt 1 | . 1 . Melee Attacks . | . . . Impact . | . . . Slashing . | . . . Piercing . | . . . Sneak Attacks . | . . . Combat Hostiles . | . . . Follow-up Attacks . | . . . Damage Inflicted 1165 | . 917 248 Guns 299 | . 299 . Cannons 866 | . 618 248 Explosions . | . . . Melee . | . . . Ramming . | . . . Kinetic 935 | . 828 107 Thermal 141 | . . 141 Explosive . | . . . Electromagnetic 89 | . 89 . Impact . | . . . Slashing . | . . . Piercing . | . . . Highest Corruption . | . . . Average Corruption . | . . . Corruption Purged . | . . . Corruption Blocked . | . . . Overload Shots . | . . . Overflow Damage . | . . . Projectiles . | . . . Explosions . | . . . Melee . | . . . Knockbacks 19 | . 17 2 Impact . | . . . Kinetic 16 | . 14 2 Secondary 3 | . 3 . Self-Inflicted Damage . | . . . Shots . | . . . Rammed . | . . . Targets Rammed . | . . . Kicked . | . . . Crushed . | . . . Highest Temperature 51 | . 51 . Average Temperature 17 | . 17 . Received Heat Transfer 378 | . 342 36 Siege Activations . | . . . Martial Activations . | . . . Shielding Activations . | . . . Robots Disrupted . | . . . Combat Hostiles . | . . . Robots Corrupted . | . . . Combat Hostiles . | . . . Parts Fried 1 | . 1 . Impact Corruptions . | . . . Robots Melted . | . . . Combat Hostiles . | . . . Parts Melted . | . . . Heat Transferred 296 | . . 296 Parts Sabotaged . | . . . Parts Stolen . | . . . Parts Stripped . | . . . Power Chain Reactions . | . . . Alert | -11 -10 -10 ------- Run | Yrd Mat Sub Maximum Alert Level . | . . . Low Security (%) 100 | 100 100 . Level 1 . | . . . Level 2 . | . . . Level 3 . | . . . Level 4 . | . . . Level 5 . | . . . High Security . | . . . Max Security . | . . . Peak Influence 99 | . 99 . Initial . | . . . Average 33 | . 35 . Influence Increases 391 | . 391 . Destroy 0b10 Robot/C 260 | . 260 . Destroy 0b10 Robot/NC 35 | . 35 . Destroy Leader 66 | . 66 . Successful Hack 13 | . 13 . Destroy Structure 2 | . 2 . Lose Combat Pursuer 15 | . 15 . Influence Decreases 391 | . 372 19 Entered New Map 10 | . . 10 Time Decay 341 | . 332 9 Lost Part 40 | . 40 . Squads Dispatched 2 | . 2 . Investigation 1 | . 1 . Extermination . | . . . Reinforcement 1 | . 1 . Assault . | . . . Garrison . | . . . Intercept . | . . . Searches Triggered . | . . . Construction Impeded . | . . . Haulers Reinforced . | . . . Active Scanning Responses . | . . . Cargo Convoy Interrupts . | . . . Stealth | -11 -10 -10 --------- Run | Yrd Mat Sub Distress Signals 1 | . 1 . Communications Jammed . | . . . Distress Signals . | . . . Times Spotted 31 | . 23 8 Peak Tracking Total 5 | . 4 5 Tactical Retreats 1 | . 1 . Traps | -11 -10 -10 ------- Run | Yrd Mat Sub Traps Triggered 1 | . 1 . Indirectly . | . . . Trap Hack Attempts . | . . . Triggered . | . . . Disarmed . | . . . Reprogrammed . | . . . Reused . | . . . Traps Extracted . | . . . Installed . | . . . Triggered . | . . . Machines | -11 -10 -10 ---------- Run | Yrd Mat Sub Machines Disabled . | . . . Max in Single Turn . | . . . Machines Repaired . | . . . Machines Dismantled . | . . . Machines Sabotaged . | . . . Overloaded Fab Kills . | . . . Hacking | -11 -10 -10 --------- Run | Yrd Mat Sub Machines Accessed 5 | . 4 1 Terminals 4 | . 4 . Fabricators . | . . . Repair Stations . | . . . Recycling Units . | . . . Scanalyzers . | . . . Garrison Access . | . . . Total Hacks 16 | . 13 3 Successful 10 | . 7 3 Failed 6 | . 6 . Catastrophic . | . . . Database Lockouts . | . . . Manual 13 | . 13 . Terminals 13 | . 13 . Fabricators . | . . . Repair Stations . | . . . Recycling Units . | . . . Scanalyzers . | . . . Garrison Access . | . . . Terminal Hacks 4 | . 1 3 Record 3 | . . 3 Terminal Index 1 | . 1 . Fabricator Hacks . | . . . Repair Station Hacks . | . . . Recycling Unit Hacks . | . . . Scanalyzer . | . . . Garrison Access Hacks . | . . . Unauthorized Hacks 6 | . 6 . Terminals 6 | . 6 . Botnet 3 | . 3 . Skim 3 | . 3 . Fabricators . | . . . Repair Stations . | . . . Recycling Units . | . . . Scanalyzers . | . . . Garrison Access . | . . . Data Cores Recovered . | . . . Used . | . . . Hacking Detections 2 | . 2 . Full Trace Events . | . . . Feedback Events . | . . . Feedback Blocked . | . . . Robot Schematics Acquired . | . . . Robots Built . | . . . Authchips . | . . . Time . | . . . Total Robot Build Rating . | . . . Part Schematics Acquired . | . . . Parts Built . | . . . Authchips . | . . . Time . | . . . Total Part Build Rating . | . . . Parts Repaired . | . . . Time . | . . . Parts Recycled . | . . . Recycled Matter . | . . . Retrieved Matter . | . . . Retrieved Components . | . . . Parts Scanalyzed . | . . . Part Schematics Acquired . | . . . Parts Damaged . | . . . Bothacking | -11 -10 -10 ------------ Run | Yrd Mat Sub Used RIF Installer . | . . . Robots Hacked . | . . . Non-combat . | . . . Combat . | . . . Robot Hacks Applied . | . . . Relay Couplers Released . | . . . Fabnet Peak Effective % . | . . . Robots Rewired . | . . . Allies Hacked . | . . . Hacks Repelled . | . . . Allies | -11 -10 -10 -------- Run | Yrd Mat Sub Total Allies . | . . . Largest Group . | . . . Highest-Rated Group . | . . . Highest-Rated Ally . | . . . Total Orders . | . . . Ally Attacks . | . . . Total Damage . | . . . Kills . | . . . Allies Corrupted . | . . . Allies Melted . | . . . Intel | -11 -10 -10 ------- Run | Yrd Mat Sub Active Infowar (turns) 1135 | . 764 371 Sensors 1135 | . 764 371 Robot Analysis Total . | . . . Derelict Logs Recovered . | . . . Drone Launches . | . . . Drone Recoveries . | . . . Exploration | -11 -10 -10 ------------- Run | Yrd Mat Sub Turns Passed 1533 | 55 1107 371 Spaces Moved 931 | 39 683 209 Core 10 | 7 2 1 Treads 433 | . 285 148 Legs . | . . . Wheels 488 | 32 396 60 Hover . | . . . Flight . | . . . Fastest Speed 50 | 50 90 110 Average Speed 125 | 98 120 147 Slowest Speed 400 | 250 400 200 Overloaded Moves . | . . . Propulsion Burnouts . | . . . Robots Hopped . | . . . Potential Cave-ins . | . . . Cave-ins Triggered . | . . . Exploration Rate (%) 31 | 3 81 11 Regions Visited 2 Branch Regions 1 Pre-discovered Areas . | . . . Known Exits Taken . | . . . Unknown Exits Taken 2 | 1 1 . Scrap Searched . | . . . Spaces Dug . | . . . Terrain Destroyed . | . . . Melee . | . . . Projectile . | . . . AOE . | . . . Terrain Rammed . | . . . Walls Destroyed . | . . . Machines Disabled . | . . . Actions | -11 -10 -10 --------- Run | Yrd Mat Sub Total 1171 | 52 865 254 Wait 136 | 2 106 28 Move 929 | 38 682 209 Hop . | . . . Pick Up 14 | 6 6 2 Fast Attach 11 | 6 4 1 Attach 5 | . 4 1 Detach . | . . . Swap 1 | . 1 . Drop 6 | . 4 2 Fire 69 | . 58 11 Melee . | . . . Ram . | . . . Kick . | . . . Crush . | . . . Escape Stasis . | . . . Rewire . | . . . Trap . | . . . Miscellaneous . | . . . Route ------- -11/Scrapyard -10/Materials (discovered 4 exits: [*Mat x2] / [*Min] / *Sub) -10/Subcaves History --------- Turn | Location | Event 29 | -11/Scrapyard | Discovered new exit (range 16) 56 | -11/Scrapyard | Entered Materials 161 | -10/Materials | Discovered new exit (range 15) 306 | -10/Materials | Build established: Mutant 382 | -10/Materials | Discovered new exit (range 13) 787 | -10/Materials | Discovered new exit (range 3) 819 | -10/Materials | Core integrity fell below 50% 1064 | -10/Materials | Discovered new exit (range 10) 1163 | -10/Materials | Entered Subcaves 1164 | -10/Subcaves | Approached by a straggling Scientist 1402 | -10/Subcaves | Visited Clippyterm 1407 | -10/Subcaves | Learned Factory emergency access door positions 1483 | -10/Subcaves | A Subdweller sparked back to life 1532 | -10/Subcaves | Core integrity fell below 20% 1534 | -10/Subcaves | Destroyed by G7-H61(R) with Subdweller Beam Cannon Last Messages --------------- 01437_ Subatomizers dissect the Wheel, destroying it. 01440_ LN-GEA(R) destroyed. 01443_ YQ-J7Q(R) destroyed. 01449_ Subatomizers dissect the Sub. Power Source. 01450_ Acquired 1 matter. 01455_ Dropped Lgt. Treads. 01456_ Acquired Sub. Monowheel. 01459_ Acquired 43 matter. 01460_ Subatomizers dissect the Sub. Power Source. 01463_ Acquired 2 matter. 01483_ BD-PZ6(R) creaks and sparks as it begins to move. 01502_ Acquired 18 matter. 01503_ Lgt. Cannon destroyed. 01526_ Ion Engine destroyed. 01529_ Beam Cannon destroyed. 01533_ Sub. Monowheel destroyed. Map ----- +----------------------------------------------------+ | ?????????????????????# # ## #???? | | ?????????????????????## ### #####???? | | ?????????????????????## ##?# ##???????? | | ?????????????????????# # #??###????????? | | ?????????????????????## ## #?????????????? | | ??????????????????????## #?????????????? | | ???????????????????????# ## #?????????????? | | ????????????????##????## #### #?????????????? | | ???????????????## #?### #??###?????????????? | | ??????????????## ## #??????????????????? | | ??????????????# #??????????????????? | | ??????????????# # #??????????????????? | | ????????????????## #??????????????????? | | ?????????????????## #??????????????????? | | ?????????????????## #??????????????????? | | ????????????????## #??????????????????? | | ????????????????# ##??????????????????? | | ????????????????###### ###???????????????????? | | ????????????????????## #?????????????????????? | | ??????????????????### ##?????????????????????? | | ??????????????#???# ##??????????????????????? | | ??????????????# ??# R ##??????????????????????? | | ?????????????## ?## #??####????????????????? | | ?????????????# ## ##?# #????????????????? | | ???????????????# ### #????????????????? | | ???????????????# @ ##????????????????? | | ???????????????# R ##?????????????????? | | ???????????????# R #??????????????????? | | ???????????????# ### ##??????????????????? | | ???????????????## #?# #???????????????????? | | ????????????????## #?## R#???????????????????? | | ?????????????????# #??#R #??????????????????? | | ????????????????## ##?? #??????????????????? | | ???????????????## ###?? #??????????????????? | | ???????????????# ## ##??????????????????? | | ??????????????## % ##???????????????????? | | ??????????????# ## #????????????????????? | | ??????????????## ### ### #????????????????????? | | ??????????????## #??##? ?????????????????????? | | ??????????????# ##???? #?????????????????????? | | ??????????????# #???? #??????????????????????? | | ??????????????# #????????????????????????????? | | ??????????????## ##??????#?????????????????????? | | ??????????????## #????? #?????????????????????? | | ??????????????# #???? #?????????????????????? | | ??????????????# ##### #?????????????????????? | | ??????????????# # # #?????????????????????? | | ??????????????# # #?????????????????????? | | ??????????????# # # #?????????????????????? | | ??????????????## # ##?????????????????????????? | +----------------------------------------------------+ Best States ------------- Heat Dissipation 25 Energy Generation 10 Energy Capacity 250 Matter Stores 300 Matter Capacity 300 Sight Range 16 Robot Scan Range 14 Terrain Scan Density 10 Evasion (%) 42 Recoil Reduction 2 Item Schematics ----------------- None Robot Schematics ------------------ None Fabricated ------------ Nothing Repaired ---------- Nothing Alien Tech Used ----------------- None Achievements -------------- None Challenges ------------ None Game ------ Seed TransdimensionalRingDetector Manual? 0 Play Time 00:29:42 Cumulative 108.3 hours Start 2025.09.27 @ 21:29:39 End 2025.09.28 @ 21:22:23 Sessions 3 Manual Loads 0 Difficulty Rogue Special Mode None Game No. 118 Rogue 118 Adventurer 0 Explorer 0 Win Type - Total 0 Types 0/0/0/0/0/0/0/0/0/0 Lore% 14 Gallery% 24 Achievement% 23 Wizard Run 0 Options --------- Layout 2 ASCII 0 Keyboard 0 Movement Numpad Keybinds 0 Fullscreen 1 Font 24/Smallcaps Map View 50x44 Zoom Use 0% Tactical HUD 1 Map Filters NONE Filters NONE Steam 1 RUN: d29b6e63-a1a0-4641-8d96-9df994a040db